bitfinex-derivatives/quotes_BTCF0:USTF0_20250814
["timestamp","ask_amount","ask_price","bid_price","bid_amount"]
[1755202872498,0.76830486,117990.0,117980.0,0.8844335]
[1755202872792,0.76830486,117990.0,117980.0,1.2452335]
[1755202874903,0.26301173,117990.0,117980.0,1.2452335]
[1755202876899,0.76830486,117990.0,117980.0,1.2452335]
[1755202877398,0.26301173,117990.0,117980.0,1.2452335]
[1755202878205,0.76830486,117990.0,117980.0,1.2452335]
[1755202879994,0.76830486,117990.0,117980.0,1.16052]
[1755202881398,0.26301173,117990.0,117980.0,1.16052]
[1755202881699,0.76830486,117990.0,117980.0,1.16052]
[1755202883600,0.76830486,117990.0,117980.0,1.2452301]
[1755202883900,0.76830486,117990.0,117980.0,1.16052]
[1755202884486,0.76830486,117990.0,117970.0,0.3608]
[1755202884700,0.74542323,117980.0,117970.0,0.3608]
[1755202884905,0.76400866,117980.0,117970.0,1.15996]
[1755202886199,0.76400866,117980.0,117970.0,1.16096]
[1755202887693,0.76400866,117980.0,117970.0,1.15996]
[1755202888793,0.25871553,117980.0,117970.0,1.15996]
[1755202889596,0.76400866,117980.0,117970.0,0.79908]
[1755202892704,0.61809734,117980.0,117970.0,0.79908]
[1755202893999,0.25871553,117980.0,117970.0,0.79908]
[1755202894206,0.2401444,117960.0,117950.0,0.3608]
[1755202894507,0.61811164,117960.0,117950.0,1.2445316]
[1755202895308,0.63561725,117960.0,117950.0,1.2445316]
[1755202895699,0.63561725,117960.0,117950.0,1.2455316]
[1755202898713,0.63561725,117960.0,117950.0,1.2465316]
[1755202899712,0.63561725,117960.0,117950.0,1.1618]
[1755202900413,0.27623544,117960.0,117950.0,1.2465316]
[1755202900613,0.63561725,117960.0,117950.0,1.2465316]
[1755202902709,0.51864725,117960.0,117950.0,1.2465316]
[1755202902914,0.15926544,117960.0,117950.0,1.2465316]
[1755202903214,0.51864725,117960.0,117950.0,1.2465316]
[1755202903516,0.53388725,117960.0,117950.0,1.2465316]
[1755202903718,0.60367725,117960.0,117950.0,1.2465316]
[1755202904014,0.63561725,117960.0,117950.0,1.2465316]
[1755202904814,0.27623544,117960.0,117950.0,1.2465316]
[1755202905015,0.63561725,117960.0,117950.0,1.2465316]
[1755202905219,0.63561725,117960.0,117950.0,1.1618]
[1755202906222,0.63561725,117960.0,117950.0,1.2465317]
[1755202907113,0.60367725,117960.0,117950.0,1.2465317]
[1755202908010,0.63561725,117960.0,117950.0,1.2465317]
[1755202909612,0.15926544,117960.0,117950.0,1.2465317]
[1755202909812,0.12081494,117960.0,117950.0,1.60591351]
[1755202910311,0.12081494,117960.0,117950.0,1.2465317]
[1755202910512,0.03609104,117960.0,117950.0,1.60671351]
[1755202910814,0.2925717,117990.0,117980.0,0.0847096]
[1755202911014,0.31115817,117990.0,117980.0,1.2443496]
[1755202911215,0.42812817,117990.0,117980.0,1.2443496]
[1755202911516,0.78750998,117990.0,117980.0,1.2443496]
[1755202913413,0.78950998,117990.0,117980.0,1.2443496]
[1755202913722,0.78950998,117990.0,117980.0,1.25269489]
[1755202913912,0.78950998,117990.0,117980.0,1.2443496]
[1755202914313,0.78950998,117990.0,117980.0,1.15964]
[1755202914515,0.78950998,117990.0,117980.0,1.2443496]
[1755202914921,0.79150998,117990.0,117980.0,1.15964]
[1755202915224,0.79150998,117990.0,117980.0,1.2443496]
[1755202915426,0.79150998,117990.0,117980.0,1.15964]
[1755202919710,0.78198958,117990.0,117980.0,0.79856]
[1755202920423,0.87922958,117990.0,117980.0,1.15936]
[1755202924822,0.94829227,117990.0,117980.0,1.15936]
[1755202927925,0.94829227,117990.0,117980.0,1.2440689]
[1755202928122,0.94829227,117990.0,117980.0,1.15936]
[1755202929327,0.94629227,117990.0,117980.0,1.15936]
[1755202929528,0.94729227,117990.0,117980.0,1.15936]
[1755202936934,0.87822958,117990.0,117980.0,1.15936]
[1755202938435,0.51884777,117990.0,117980.0,1.15936]
[1755202938630,0.87822958,117990.0,117980.0,1.15936]
[1755202942923,0.1694234,117980.0,117960.0,0.3608]
[1755202943129,0.60442761,117970.0,117960.0,0.3608]
[1755202943329,0.62301408,117970.0,117960.0,1.15868]
[1755202943923,0.62318667,117970.0,117960.0,1.15868]
[1755202946536,0.14109486,117970.0,117960.0,1.15948]
[1755202946739,0.10347486,117970.0,117960.0,1.2441965]
[1755202947038,0.14067486,117970.0,117960.0,1.15948]
[1755202947829,0.14067486,117970.0,117960.0,1.2441965]
[1755202948030,0.14067486,117970.0,117960.0,1.15948]
[1755202948740,0.14067486,117970.0,117960.0,1.16048]
[1755202949240,0.14067486,117970.0,117960.0,1.16248]
[1755202949835,0.14067486,117970.0,117960.0,1.2471962]
[1755202950438,0.16395486,117970.0,117960.0,1.2471962]
[1755202950944,0.10346826,117970.0,117960.0,1.2471962]
[1755202951136,0.10346826,117970.0,117960.0,1.60657801]
[1755202951333,0.10346826,117970.0,117960.0,1.60577801]
[1755202951534,0.10346826,117970.0,117960.0,1.2463962]
[1755202951837,0.14066826,117970.0,117960.0,1.2463962]
[1755202953335,0.01875906,117970.0,117960.0,1.2463962]
[1755202953541,0.01875906,117970.0,117960.0,1.60577801]
[1755202954037,0.01875906,117970.0,117960.0,1.60657801]
[1755202954241,0.31036103,117990.0,117980.0,0.084702]
[1755202954441,0.3291743,117990.0,117980.0,1.243142]
[1755202954638,0.3902443,117990.0,117980.0,1.243142]
[1755202954832,0.4226343,117990.0,117980.0,1.243142]
[1755202955340,0.77268611,117990.0,117980.0,1.243142]
[1755202955538,0.80507611,117990.0,117980.0,1.243142]
[1755202957042,0.80507611,117990.0,117980.0,1.15844]
[1755202957935,0.80507611,117990.0,117980.0,1.2431422]
[1755202958342,0.72687611,117990.0,117980.0,1.2431422]
[1755202958739,0.32917104,117990.0,117980.0,1.2431422]
[1755202959041,0.32917104,117990.0,117980.0,1.6039422]
[1755202959944,0.36749104,117990.0,117980.0,1.6039422]
[1755202961136,0.24447004,117990.0,117980.0,1.6039422]
[1755202961339,0.12257074,117990.0,117980.0,1.96332401]
[1755202962644,0.15977074,117990.0,117980.0,1.96332401]
[1755202963338,0.002,117990.0,117980.0,2.13363601]
[1755202965141,0.002,117990.0,117980.0,2.33463601]
[1755202965444,0.002,117990.0,117980.0,2.33763601]
[1755202967345,0.002,117990.0,117980.0,2.33683601]
[1755202968843,0.002,117990.0,117980.0,2.13683601]
[1755202969649,0.2060047,118020.0,118010.0,0.0846815]
[1755202969848,0.25716328,118020.0,118010.0,1.6033615]
[1755202970243,0.22477328,118020.0,118010.0,1.6033615]
[1755202970444,0.20171328,118020.0,118010.0,1.6033615]
[1755202970646,0.07100858,118020.0,118010.0,1.6033615]
[1755202970944,0.15568288,118020.0,118010.0,1.6117797]
[1755202971144,0.17896288,118020.0,118010.0,1.6117797]
[1755202971340,0.22477288,118020.0,118010.0,1.6117797]
[1755202971545,0.17248858,118020.0,118010.0,1.6117797]
[1755202971746,0.09428858,118020.0,118010.0,1.6117797]
[1755202971958,0.09428858,118020.0,118010.0,1.97116151]
[1755202972252,0.07100858,118020.0,118010.0,1.97116151]
[1755202972759,0.17896288,118020.0,118010.0,1.6117797]
[1755202973058,0.25716288,118020.0,118010.0,1.6117797]
[1755202980058,0.2383943,118020.0,118010.0,1.6117797]
[1755202981865,0.15372,118020.0,118010.0,1.6117797]
[1755202982275,0.17247072,118020.0,118010.0,1.6117797]
[1755202983078,0.14008072,118020.0,118010.0,1.6117797]
[1755202983271,0.14008072,118020.0,118010.0,1.97116151]
[1755202984674,0.14008072,118020.0,118010.0,1.6117797]
[1755202984873,0.25644502,118020.0,118010.0,1.6117797]
[1755202985078,0.17177072,118020.0,118010.0,1.6117797]
[1755202986385,0.05595072,118020.0,118010.0,1.97116151]
[1755202988274,0.05595072,118020.0,118010.0,1.97216151]
[1755202989383,0.01875072,118020.0,118010.0,1.97216151]
[1755202989582,0.0856,118040.0,118030.0,0.0846674]
[1755202989883,0.11729,118040.0,118030.0,1.6025874]
[1755202990083,0.15385,118040.0,118030.0,1.6025874]
[1755202990876,0.15485,118040.0,118030.0,1.6025874]
[1755202991376,0.15385,118040.0,118030.0,1.6025874]
[1755202992385,0.12216,118040.0,118030.0,1.96196921]
[1755202992683,0.12216,118040.0,118030.0,1.6025874]
[1755202993082,0.05254,118040.0,118030.0,1.6025874]
[1755202993282,0.07602,118040.0,118030.0,1.6025874]
[1755202994186,0.07602,118040.0,118030.0,1.96196921]
[1755202994583,0.07602,118040.0,118030.0,1.6025874]
[1755202995086,0.09995,118040.0,118030.0,1.6025874]
[1755202995290,0.13164,118040.0,118030.0,1.6025874]
[1755202995477,0.15385,118040.0,118030.0,1.6025874]
[1755202996280,0.2385094,118040.0,118030.0,1.6023874]
[1755202997183,0.15385,118040.0,118030.0,1.6023874]
[1755202997383,0.03656,118040.0,118030.0,1.6023874]
[1755202997983,0.06004,118040.0,118030.0,1.6023874]
[1755202998288,0.03656,118040.0,118030.0,1.6023874]
[1755202998679,0.4924517,118060.0,118050.0,0.0846535]
[1755202998877,0.4924517,118060.0,118050.0,1.2414535]
[1755202999482,0.85183351,118060.0,118050.0,1.2414535]
[1755203001295,0.85283351,118060.0,118050.0,1.2414535]
[1755203001487,0.78688569,118060.0,118050.0,1.24970644]
[1755203002092,0.70223429,118060.0,118050.0,1.2687313]
[1755203002800,0.14186528,118060.0,118050.0,1.98891311]
[1755203003097,0.14186528,118060.0,118050.0,1.6295313]
[1755203003687,0.05626528,118060.0,118050.0,1.6295313]
[1755203004088,0.09587528,118060.0,118050.0,1.6295313]
[1755203004992,0.09587528,118060.0,118050.0,0.8335313]
[1755203005196,0.17177528,118060.0,118050.0,1.6293713]
[1755203005392,0.13905528,118060.0,118050.0,1.6293713]
[1755203005894,0.13805528,118060.0,118050.0,1.6293713]
[1755203006085,0.17077528,118060.0,118050.0,1.6293713]
[1755203006481,0.13805528,118060.0,118050.0,1.6293713]
[1755203009697,0.17077528,118060.0,118050.0,1.6293713]
[1755203010096,0.25542148,118060.0,118050.0,1.6293713]
[1755203011602,0.61480329,118060.0,118050.0,1.6292113]
[1755203011894,0.61480329,118060.0,118050.0,0.74062486]
[1755203012096,0.61480329,118060.0,118050.0,1.62091826]
[1755203012495,0.25622148,118060.0,118050.0,0.7216]
[1755203012799,0.61560329,118060.0,118050.0,1.51724]
[1755203012996,0.61560329,118060.0,118050.0,0.7216]
[1755203013188,0.2361334,118050.0,118040.0,0.4454605]
[1755203013389,0.61422049,118050.0,118040.0,1.2410605]
[1755203014401,0.61422049,118050.0,118040.0,1.2420605]
[1755203015906,0.25483868,118050.0,118040.0,1.2420605]
[1755203016202,0.61422049,118050.0,118040.0,1.2507225]
[1755203017698,0.58150049,118050.0,118040.0,1.2507225]
[1755203017895,0.25483868,118050.0,118040.0,1.2507225]
[1755203018101,0.07068528,118050.0,118040.0,1.2507225]
[1755203018403,0.07068528,118050.0,118040.0,1.61010431]
[1755203018599,0.01870528,118050.0,118040.0,1.61010431]
[1755203018803,0.01870528,118050.0,118040.0,1.61090431]
[1755203019098,0.05367888,118060.0,118050.0,0.0846534]
[1755203019300,0.08770569,118060.0,118050.0,0.4454534]
[1755203019505,0.11130569,118060.0,118050.0,0.4454534]
[1755203020397,0.07231569,118060.0,118050.0,0.4454534]
[1755203021200,0.09591569,118060.0,118050.0,0.4454534]
[1755203022006,0.03572569,118060.0,118050.0,0.80563521]
[1755203023011,0.03572569,118060.0,118050.0,0.87302382]
[1755203023508,0.01863681,118060.0,118050.0,2.04462382]
[1755203023706,0.07568,118080.0,118070.0,0.10344169]
[1755203023912,0.07568,118080.0,118070.0,1.9798235]
[1755203024515,0.07568,118080.0,118070.0,1.98008067]
[1755203025008,0.15158,118080.0,118070.0,1.62069886]
[1755203025411,0.15258,118080.0,118070.0,1.62069886]
[1755203026309,0.11986,118080.0,118070.0,1.62069886]
[1755203026496,0.09869,118080.0,118070.0,1.62069886]
[1755203027103,0.07668,118080.0,118070.0,1.62069886]
[1755203027303,0.03769,118080.0,118070.0,1.98008067]
[1755203027712,0.0011,118080.0,118070.0,1.98008067]
[1755203028107,0.0011,118080.0,118070.0,1.96102251]
[1755203028507,0.03669,118080.0,118070.0,1.96102251]
[1755203031014,0.03769,118080.0,118070.0,1.96102251]
[1755203031714,0.0011,118080.0,118070.0,1.96102251]
[1755203032609,0.03769,118080.0,118070.0,1.96102251]
[1755203033010,0.0011,118080.0,118070.0,1.96102251]
[1755203033810,0.03769,118080.0,118070.0,1.96102251]
[1755203035811,0.0011,118080.0,118070.0,1.96102251]
[1755203037015,0.0001,118080.0,118070.0,1.96102251]
[1755203040119,0.11748,118100.0,118090.0,0.084629]
[1755203040322,0.13595762,118100.0,118090.0,1.601109]
[1755203040619,0.16952762,118100.0,118090.0,1.601109]
[1755203041620,0.06736762,118100.0,118090.0,1.97926921]
[1755203041919,0.05089,118100.0,118090.0,1.97926921]
[1755203042118,0.05189,118100.0,118090.0,1.97926921]
[1755203042315,0.003,118100.0,118090.0,1.6198874]
[1755203042507,0.03357,118110.0,118090.0,2.14852251]
[1755203042714,0.03357,118110.0,118100.0,0.80480371]
[1755203043016,0.03357,118110.0,118100.0,1.97604371]
[1755203043217,0.03729,118130.0,118120.0,0.0936475]
[1755203043423,0.43836452,118150.0,118140.0,0.0845932]
[1755203043617,0.43836452,118150.0,118140.0,1.2401132]
[1755203043921,0.47201452,118150.0,118140.0,1.2401132]
[1755203044117,0.56569214,118150.0,118140.0,1.2401132]
[1755203044421,0.72668082,118150.0,118140.0,1.2401132]
[1755203044612,0.55940082,118150.0,118140.0,1.2401132]
[1755203045014,0.92868082,118150.0,118140.0,1.15544]
[1755203045214,0.96325082,118150.0,118140.0,1.2400334]
[1755203045418,0.98522082,118150.0,118140.0,1.2400334]
[1755203046023,0.98522082,118150.0,118140.0,0.4453934]
[1755203046224,0.98522082,118150.0,118140.0,0.8791934]
[1755203046414,0.99372344,118150.0,118140.0,0.8791934]
[1755203046614,0.82444344,118150.0,118140.0,0.8791934]
[1755203046824,0.46506163,118150.0,118140.0,0.8791934]
[1755203047014,0.82444344,118150.0,118140.0,0.8791934]
[1755203047416,0.81594082,118150.0,118140.0,0.8791934]
[1755203048122,0.61514082,118150.0,118140.0,0.8791934]
[1755203048425,0.61514082,118150.0,118140.0,0.85166982]
[1755203050023,0.25575901,118150.0,118140.0,0.85166982]
[1755203050227,0.61514082,118150.0,118140.0,0.85166982]
[1755203052342,0.59801811,118150.0,118140.0,0.85166982]
[1755203052739,0.59801811,118150.0,118140.0,0.85592982]
[1755203053143,0.2386363,118150.0,118140.0,0.85592982]
[1755203053338,0.59801811,118150.0,118140.0,0.87844982]
[1755203053645,0.2356437,118140.0,118130.0,0.6991873]
[1755203053946,0.59502551,118140.0,118130.0,1.4935473]
[1755203054142,0.59502551,118140.0,118130.0,1.4978073]
[1755203054545,0.59502551,118140.0,118130.0,0.7259673]
[1755203054845,0.59502551,118140.0,118130.0,1.2397209]
[1755203055045,0.59502551,118140.0,118130.0,1.15512]
[1755203055247,0.59502551,118140.0,118130.0,1.2397209]
[1755203055447,0.6134217,118140.0,118130.0,1.2397209]
[1755203056243,0.6134217,118140.0,118130.0,1.2439809]
[1755203056738,0.6134217,118140.0,118130.0,1.2397209]
[1755203056941,0.6134217,118140.0,118130.0,1.2730009]
[1755203058141,0.6134217,118140.0,118130.0,1.2439809]
[1755203058743,0.6134217,118140.0,118130.0,0.3608]
[1755203058945,0.2356509,118130.0,118120.0,0.3608]
[1755203059245,0.63047821,118130.0,118120.0,1.239648]
[1755203059449,0.63047821,118130.0,118120.0,1.243908]
[1755203060038,0.63047821,118130.0,118120.0,1.240648]
[1755203060241,0.63047821,118130.0,118120.0,1.244908]
[1755203061546,0.59682821,118130.0,118120.0,1.273928]
[1755203061747,0.63047821,118130.0,118120.0,1.274928]
[1755203061943,0.0354455,118130.0,118120.0,1.274928]
[1755203062342,0.0354455,118130.0,118120.0,1.63510981]
[1755203063153,0.0354455,118130.0,118120.0,1.275728]
[1755203064456,0.92466501,118160.0,118150.0,0.1127768]
[1755203064655,1.09393701,118160.0,118150.0,0.9002068]
[1755203064854,1.09393701,118160.0,118150.0,0.79424]
[1755203065057,1.03351117,118160.0,118150.0,0.8788268]
[1755203065249,0.7345552,118160.0,118150.0,0.8788268]
[1755203065449,1.09393701,118160.0,118150.0,0.8830868]
[1755203065745,1.09593701,118160.0,118150.0,0.8830868]
[1755203066050,1.09793701,118160.0,118150.0,0.8830868]
[1755203066251,1.17468479,118160.0,118150.0,0.7985]
[1755203066449,1.5340666,118160.0,118150.0,0.7985]
[1755203066756,0.63763071,118160.0,118150.0,0.8788282]
[1755203066960,0.99701252,118160.0,118150.0,0.8830882]
[1755203067857,0.62036055,118160.0,118150.0,0.9070182]
[1755203068047,0.97974236,118160.0,118150.0,0.9070182]
[1755203069046,0.2338412,118150.0,118140.0,0.6145679]
[1755203069252,0.59322301,118150.0,118140.0,1.4086879]
[1755203069455,0.59322301,118150.0,118140.0,0.963296]
[1755203069848,0.65364885,118150.0,118140.0,0.967556]
[1755203070548,0.0845996,118140.0,118130.0,0.63744616]
[1755203070750,0.65365725,118140.0,118130.0,0.10743676]
[1755203071057,0.65365725,118140.0,118130.0,1.26231676]
[1755203073851,0.65365725,118140.0,118130.0,1.23479189]
[1755203074059,0.09309584,118140.0,118130.0,1.24549189]
[1755203074851,0.17769514,118140.0,118130.0,1.24549189]
[1755203075557,0.21468514,118140.0,118130.0,1.24549189]
[1755203075857,0.24895514,118140.0,118130.0,1.24549189]
[1755203076462,0.26727336,118140.0,118130.0,1.24549189]
[1755203077362,0.20684752,118140.0,118130.0,1.24549189]
[1755203078160,0.17257752,118140.0,118130.0,1.24549189]
[1755203079558,0.20684752,118140.0,118130.0,1.24549189]
[1755203080365,0.61154933,118140.0,118130.0,1.24549189]
[1755203080662,0.61154933,118140.0,118130.0,1.25860189]
[1755203080958,0.25216752,118140.0,118130.0,0.89780189]
[1755203081159,0.61154933,118140.0,118130.0,0.89780189]
[1755203082354,0.25216752,118140.0,118130.0,0.90850189]
[1755203083356,0.49268003,118140.0,118130.0,1.26930189]
[1755203083566,0.08797822,118140.0,118130.0,1.26930189]
[1755203083951,0.01831822,118140.0,118130.0,1.26930189]
[1755203084262,0.01831822,118140.0,118130.0,1.6286837]
[1755203084764,0.01831822,118140.0,118130.0,1.26930189]
[1755203085956,0.05098822,118140.0,118130.0,1.26930189]
[1755203087457,0.01831822,118140.0,118130.0,1.26930189]
[1755203090057,0.01831822,118140.0,118130.0,0.47534189]
[1755203090263,0.01831822,118140.0,118130.0,1.26946189]
[1755203090467,0.13329822,118140.0,118130.0,0.47534189]
[1755203090761,0.61154883,118140.0,118130.0,1.267676]
[1755203091263,0.61154883,118140.0,118130.0,1.278376]
[1755203091759,0.01831822,118140.0,118130.0,1.278376]
[1755203091968,0.05098822,118140.0,118130.0,1.278376]
[1755203092261,0.01831822,118140.0,118130.0,1.278376]
[1755203092467,0.05098822,118140.0,118130.0,1.278376]
[1755203092657,0.01831822,118140.0,118130.0,1.278376]
[1755203093056,0.01831822,118140.0,118130.0,1.63775781]
[1755203093668,0.238839,118160.0,118150.0,0.1234813]
[1755203093872,0.1542489,118160.0,118150.0,1.2782413]
[1755203094168,0.2401111,118170.0,118160.0,0.1212042]
[1755203094369,0.2401111,118170.0,118160.0,0.4820042]
[1755203094672,0.07095,118170.0,118160.0,0.4820042]
[1755203094871,0.155527,118170.0,118160.0,0.4820042]
[1755203095065,0.132407,118170.0,118160.0,0.49046778]
[1755203095661,0.155527,118170.0,118160.0,0.49046778]
[1755203095968,0.155527,118170.0,118160.0,0.4820042]
[1755203096168,0.231197,118170.0,118160.0,0.4820042]
[1755203097068,0.59257881,118170.0,118160.0,0.4721742]
[1755203098468,0.233197,118170.0,118160.0,0.4721742]
[1755203098665,0.157527,118170.0,118160.0,0.4820042]
[1755203099373,0.07295,118170.0,118160.0,0.4820042]
[1755203099668,0.03771,118170.0,118160.0,0.4820042]
[1755203100256,0.03671,118170.0,118160.0,0.4820042]
[1755203100461,0.234197,118170.0,118160.0,0.4820042]
[1755203100762,0.59257881,118170.0,118160.0,0.4453842]
[1755203100974,0.59257881,118170.0,118160.0,1.2409442]
[1755203101368,0.59257881,118170.0,118160.0,1.16062]
[1755203101570,0.59257881,118170.0,118160.0,0.884404]
[1755203104567,0.65951338,118170.0,118160.0,0.884404]
[1755203104861,0.65951338,118170.0,118160.0,0.00426]
[1755203105062,0.2312113,118150.0,118140.0,0.0845984]
[1755203105266,0.2312113,118150.0,118140.0,0.8807984]
[1755203105267,0.60791679,118150.0,118140.0,0.8807984]
[1755203105666,0.62606481,118150.0,118140.0,0.7962]
[1755203105862,0.98686481,118150.0,118140.0,0.8807985]
[1755203106067,0.62606481,118150.0,118140.0,0.8807985]
[1755203106266,0.98686481,118150.0,118140.0,0.8807983]
[1755203106466,0.98686481,118150.0,118140.0,0.7972]
[1755203106773,1.13143776,118150.0,118140.0,0.8817983]
[1755203106968,1.1314378,118150.0,118140.0,0.001]
[1755203107176,1.1314378,118150.0,118140.0,0.79824]
[1755203107868,1.1314378,118150.0,118140.0,0.79924]
[1755203108874,1.1314378,118150.0,118140.0,0.8870983]
[1755203109070,1.0992778,118150.0,118140.0,0.9082083]
[1755203109275,0.26668304,118150.0,118140.0,0.9177683]
[1755203111376,0.03547174,118150.0,118140.0,1.2785683]
[1755203111678,0.03547174,118150.0,118140.0,1.2793683]
[1755203114978,0.05103152,118170.0,118160.0,0.1213141]
[1755203115182,0.05103152,118170.0,118160.0,0.9175941]
[1755203115368,0.05103152,118170.0,118160.0,1.6391941]
[1755203116290,0.05103152,118170.0,118160.0,1.6383941]
[1755203116895,0.01732152,118170.0,118160.0,1.6383941]
[1755203117888,0.16394152,118170.0,118160.0,1.6395141]
[1755203118095,0.13178152,118170.0,118160.0,1.6395141]
[1755203118290,0.08827152,118170.0,118160.0,1.6395141]
[1755203119197,0.05103152,118170.0,118160.0,1.6395141]
[1755203119389,0.01732152,118170.0,118160.0,2.14346886]
[1755203120296,0.04783,118190.0,118180.0,0.1205]
[1755203120497,0.40653364,118220.0,118210.0,0.0845485]
[1755203120692,0.2311634,118220.0,118210.0,0.9089985]
[1755203121698,0.73511816,118220.0,118210.0,0.9089985]
[1755203121887,0.73711816,118220.0,118210.0,0.8979285]
[1755203122088,0.2331634,118220.0,118210.0,0.8979285]
[1755203122292,0.73711816,118220.0,118210.0,0.9021885]
[1755203122701,0.2331634,118220.0,118210.0,0.9089985]
[1755203122894,0.14862,118220.0,118210.0,0.9089985]
[1755203123093,0.2331614,118220.0,118210.0,0.9089985]
[1755203124291,0.002,118220.0,118210.0,1.2789685]
[1755203124601,0.05879,118220.0,118210.0,1.2789685]
[1755203124804,0.10719,118220.0,118210.0,1.2789685]
[1755203126508,0.1917314,118220.0,118210.0,1.2789685]
[1755203127007,0.25305273,118220.0,118210.0,1.2695185]
[1755203128803,0.25305273,118220.0,118210.0,0.4717185]
[1755203129009,0.75700749,118220.0,118210.0,0.9085585]
[1755203130412,0.25305273,118220.0,118210.0,0.9085585]
[1755203130909,0.25305273,118220.0,118210.0,0.9085185]
[1755203134216,0.75700749,118220.0,118210.0,0.9085185]
[1755203134510,0.25305273,118220.0,118210.0,0.9085185]
[1755203134726,0.75700749,118220.0,118210.0,0.9085185]
[1755203134907,1.11780749,118220.0,118210.0,0.9085185]
[1755203135106,0.61385273,118220.0,118210.0,0.9085185]
[1755203135413,1.11780749,118220.0,118210.0,0.9085185]
[1755203135605,0.1427786,118210.0,118200.0,1.873752]
[1755203135806,0.7721604,118210.0,118200.0,1.17048]
[1755203136016,1.13292534,118210.0,118200.0,1.96852]
[1755203136202,1.13292534,118210.0,118200.0,1.17048]
[1755203136409,1.14125013,118210.0,118200.0,1.96888]
[1755203137512,1.14125013,118210.0,118200.0,1.9686]
[1755203138120,0.2330558,118200.0,118190.0,0.02573]
[1755203138320,0.92410943,118200.0,118190.0,0.886903]
[1755203138815,0.92410943,118200.0,118190.0,0.901563]
[1755203139015,1.28490943,118200.0,118190.0,0.82381]
[1755203139215,1.28490943,118200.0,118190.0,0.79808]
[1755203140018,1.28490943,118200.0,118190.0,0.8869029]
[1755203140218,1.28490943,118200.0,118190.0,0.80234]
[1755203141516,0.23307,118180.0,118170.0,0.7248243]
[1755203141817,0.25104627,118180.0,118170.0,1.5223843]
[1755203142225,0.25104627,118180.0,118170.0,1.5315543]
[1755203142720,0.25104627,118180.0,118170.0,1.5325543]
[1755203145419,0.25104627,118180.0,118170.0,0.7349943]
[1755203145612,0.77181017,118180.0,118170.0,0.02673]
[1755203145926,0.77181017,118180.0,118170.0,0.79828]
[1755203146112,1.13261017,118180.0,118170.0,0.79828]
[1755203146417,1.13261017,118180.0,118170.0,0.80254]
[1755203146608,0.62865541,118180.0,118170.0,0.80254]
[1755203146814,1.13261017,118180.0,118170.0,0.80254]
[1755203147414,1.13261017,118180.0,118170.0,0.00526]
[1755203147614,1.13261017,118180.0,118160.0,1.2547813]
[1755203147615,0.2330772,118170.0,118160.0,1.1702]
[1755203147822,1.17623407,118170.0,118160.0,1.96752]
[1755203148520,1.11580823,118170.0,118160.0,1.97178]
[1755203151322,1.1845491,118170.0,118160.0,1.96752]
[1755203152023,1.1845491,118170.0,118160.0,0.82305]
[1755203152716,1.1845491,118170.0,118160.0,0.81624]
[1755203153015,1.1845491,118170.0,118160.0,0.80158]
[1755203153614,0.1996123,118150.0,118140.0,0.4688656]
[1755203153819,0.75502333,118150.0,118140.0,0.82557]
[1755203154121,0.75502333,118150.0,118140.0,0.9101695]
[1755203154310,0.75502333,118150.0,118140.0,0.9181295]
[1755203154912,0.75502333,118150.0,118140.0,0.9191295]
[1755203155114,0.25106857,118150.0,118140.0,0.9191295]
[1755203155313,0.20491857,118150.0,118140.0,0.9191295]
[1755203156516,0.17320857,118150.0,118140.0,0.9191295]
[1755203156722,0.15219857,118150.0,118140.0,0.9191295]
[1755203156918,0.15219857,118150.0,118140.0,1.2799295]
[1755203157230,0.17320857,118150.0,118140.0,1.2799295]
[1755203157622,0.20491857,118150.0,118140.0,1.2799295]
[1755203157821,0.22787857,118150.0,118140.0,1.2799295]
[1755203158022,0.22787857,118150.0,118140.0,1.2789295]
[1755203162429,0.01001627,118150.0,118140.0,1.6165177]
[1755203162726,0.2240368,118170.0,118160.0,0.0845875]
[1755203163022,0.05487,118170.0,118160.0,1.5996457]
[1755203163224,0.03386,118170.0,118160.0,1.5996457]
[1755203163415,0.01680914,118180.0,118160.0,1.8542033]
[1755203163615,0.01680914,118180.0,118170.0,0.8036384]
[1755203163921,0.05066914,118180.0,118170.0,0.4453802]
[1755203164521,0.05066914,118180.0,118170.0,0.8036384]
[1755203164818,0.05066914,118180.0,118170.0,0.4453802]
[1755203165016,0.10138224,118180.0,118170.0,1.2410202]
[1755203165212,0.22491224,118180.0,118170.0,1.2410202]
[1755203166025,0.17024224,118180.0,118170.0,1.2410202]
[1755203166830,0.14923224,118180.0,118170.0,1.2410202]
[1755203168229,0.1324231,118180.0,118170.0,1.2410202]
[1755203168720,0.1534331,118180.0,118170.0,1.2410202]
[1755203170634,0.1977831,118180.0,118170.0,0.4453802]
[1755203170833,0.2294931,118180.0,118170.0,0.795]
[1755203171136,0.2294995,118170.0,118160.0,0.0845867]
[1755203171325,1.09373291,118170.0,118160.0,0.8797467]
[1755203171522,0.5902995,118170.0,118160.0,0.8797467]
[1755203171722,0.1534538,118150.0,118140.0,0.6165982]
[1755203172035,0.1534538,118150.0,118140.0,1.0508782]
[1755203172036,0.2295138,118150.0,118140.0,1.0508782]
[1755203172738,0.2295138,118150.0,118140.0,0.881761]
[1755203172934,0.24652275,118150.0,118140.0,0.881761]
[1755203173633,0.17046275,118150.0,118140.0,0.881761]
[1755203173834,0.20217275,118150.0,118140.0,0.881761]
[1755203174636,0.22021128,118150.0,118140.0,0.881761]
[1755203177933,0.24317128,118150.0,118140.0,0.881761]
[1755203178430,0.18850128,118150.0,118140.0,1.242561]
[1755203178833,0.15350128,118150.0,118140.0,1.242561]
[1755203179335,0.03504748,118150.0,118140.0,1.74599441]
[1755203182041,0.03504748,118150.0,118140.0,1.242561]
[1755203183735,0.06890748,118150.0,118140.0,1.242561]
[1755203184041,0.06889541,118150.0,118140.0,1.242561]
[1755203184237,0.05188646,118150.0,118140.0,1.242561]
[1755203186634,0.05188646,118150.0,118140.0,1.60074004]
[1755203186834,0.05188646,118150.0,118140.0,1.242561]
[1755203187033,0.05188646,118150.0,118140.0,1.60074004]
[1755203190845,0.05188646,118150.0,118140.0,1.59874004]
[1755203191038,0.13647996,118150.0,118140.0,1.59874004]
[1755203191244,0.60521513,118150.0,118140.0,1.240681]
[1755203191742,0.60601513,118150.0,118140.0,1.1564]
[1755203191937,0.60601513,118150.0,118140.0,1.2410006]
[1755203192441,0.58803254,118150.0,118140.0,1.2410006]
[1755203192645,0.60601524,118150.0,118140.0,1.2410006]
[1755203193150,0.60601524,118150.0,118140.0,0.7956]
[1755203193350,0.60601524,118150.0,118140.0,0.8802006]
[1755203196461,0.60601524,118150.0,118140.0,1.2410006]
[1755203196462,0.2255662,118150.0,118140.0,1.2410006]
[1755203196950,0.2470362,118150.0,118140.0,1.2410006]
[1755203198644,0.0179827,118150.0,118140.0,1.59917964]
[1755203199047,0.0179827,118150.0,118140.0,1.59997964]
[1755203200658,0.0179827,118150.0,118140.0,1.74538208]